lending/lending_fUSD_20260312
["ID","MTS","AMOUNT","RATE_DAILY","PERIOD"]
[408239384,1773292244062,-2432.6275441,0.0002,2]
[408239385,1773292244101,-233.61096121,0.0002,2]
[408239386,1773292244112,-9449.51153875,0.0002,2]
[408239391,1773292245518,-801.25,0.00016545,2]
[408239392,1773292245527,-35245.47332976,0.0002,2]
[408239393,1773292245539,-25983.34263492,0.0002,2]
[408239394,1773292245685,-444.58999998,0.0002,2]
[408239399,1773292750849,-250.0,0.00015,2]
[408239400,1773292750879,-541.1375957,0.000165,2]
[408239401,1773292750907,-506.0,0.00017,2]
[408239402,1773292750933,-300.0,0.00017,2]
[408239403,1773292750962,-250.0,0.00017053,2]
[408239404,1773292750989,-185.02,0.00017629,2]
[408239405,1773292751018,-500.0,0.00017641,2]
[408239406,1773292751045,-369.281364,0.00017641,2]
[408239407,1773292751073,-250.0,0.000187,2]
[408239408,1773292751100,-618.13,0.00018923,2]
[408239409,1773292751127,-500.0,0.0001901,2]
[408239410,1773292751269,-1600.0,0.00019074,2]
[408239411,1773292751299,-168.0,0.00019272,2]
[408239412,1773292751326,-618.13,0.00019396,2]
[408239413,1773292751361,-168.0,0.00019414,2]
[408239414,1773292751609,-858.82371979,0.000196,2]
[408239415,1773292751638,-1576.7167834,0.000197,2]
[408239416,1773292751778,-230.0,0.00019721,2]
[408239417,1773292751807,-1576.71678338,0.00019722,2]
[408239418,1773292751838,-150.0,0.00019726,2]
[408239419,1773292751866,-500.0,0.00019726,2]
[408239420,1773292751892,-150.0,0.00019726,2]
[408239421,1773292751921,-500.0,0.00019726,2]
[408239422,1773292751949,-200.0,0.00019726,2]
[408239423,1773292751977,-1000.0,0.00019726,2]
[408239424,1773292752489,-300.0,0.00019736,2]
[408239425,1773292752503,-200.0,0.00019736,2]
[408239426,1773292752518,-1000.0,0.00019736,2]
[408239427,1773292752532,-46.65292916,0.00019736,2]
[408239428,1773292752541,-1339.92350408,0.00019744,2]
[408239429,1773292753806,-236.7932793,0.00019744,2]
[408239430,1773292753839,-1546.65292908,0.00019754,2]
[408239431,1773292753869,-1576.71678338,0.00019767,2]
[408239432,1773292753908,-1546.65292908,0.00019772,2]
[408239433,1773292753941,-18.37815832,0.0001978,2]
[408239434,1773292754037,-149.62184168,0.0001978,2]
[408239435,1773292754067,-500.0,0.00019781,2]
[408239436,1773292754100,-150.0,0.00019781,2]
[408239437,1773292754132,-500.0,0.00019781,2]
[408239438,1773292754164,-1200.0,0.00019782,2]
[408239439,1773292754332,-149.62184168,0.00019783,2]
[408239440,1773292754350,-5000.76631664,0.00019783,2]
[408239441,1773292759827,-2837.22815832,0.00019783,2]
[408239442,1773292759851,-4325.55368336,0.00019783,2]
[408239443,1773292759919,-414.0,0.00019783,2]
[408239444,1773292759948,-620.0,0.00019783,2]
[408239445,1773292759976,-3507.0,0.00019783,2]
[408239446,1773292760036,-918.01,0.00019783,2]
[408239457,1773293431697,-506.0,0.00017,2]
[408239458,1773293431707,-160.96670514,0.00017,2]
[408239459,1773293431766,-346.03332486,0.00017,2]
[408239460,1773293431777,-294.0,0.00017,2]
[408239461,1773293431787,-109.96667514,0.00018603,2]
[408239462,1773293431800,-390.03332486,0.00018603,2]
[408239463,1773293431810,-1686.74667514,0.00018682,2]
[408239464,1773293431822,-585.43242494,0.00018682,2]
[408239465,1773293431838,-266.38014877,0.00018682,2]
[408239466,1773293431849,-609.8984744,0.00018682,2]
[408239467,1773293431861,-1361.55227675,0.00018682,2]
[408239468,1773293431871,-121.34925385,0.000187,2]
[408239469,1773293431891,-534.78074615,0.000187,2]
[408239470,1773293431900,-300.0,0.00018793,2]
[408239471,1773293431909,-1137.96944038,0.00018793,2]
[408239472,1773293431921,-62.03055962,0.00018793,2]
[408239473,1773293431930,-785.83560272,0.00018794,2]
[408239477,1773293431966,-1384.22,0.00018794,2]
[408239505,1773293437788,-8.72850102,0.00018794,2]
[408239506,1773293437798,-500.0,0.00018794,2]
[408239507,1773293437807,-200.0,0.00018812,2]
[408239508,1773293437816,-152.19,0.0001887,2]
[408239509,1773293437825,-416.35288935,0.00018875,2]
[408239510,1773293437836,-83.64711065,0.00018875,2]
[408239511,1773293437846,-1050.66,0.00019074,2]
[408239512,1773293437855,-833.37157707,0.00019074,2]
[408239513,1773293437866,-965.22669164,0.00019074,2]
[408239514,1773293437877,-1441.40173129,0.00019074,2]
[408239515,1773293437887,-322.0,0.00019205,2]
[408239516,1773293437896,-256.59826871,0.00019288,2]
[408239517,1773293437911,-243.40173129,0.00019288,2]
[408239518,1773293437921,-165.93,0.00019315,2]
[408239519,1773293437931,-1000.0,0.00019452,2]
[408239520,1773293437940,-185.6767296,0.00019696,2]
[408239521,1773293437950,-59.35716852,0.00019696,2]
[408239623,1773293440028,-178.74956588,0.00019696,2]
[408239624,1773293440037,-375.180305,0.00019696,2]
[408239625,1773293440045,-2241.1905,0.000197,2]
[408239627,1773293440054,-969.90722369,0.000197,2]
[408239628,1773293440084,-1425.82817633,0.000197,2]
[408239629,1773293440305,-6295.27109998,0.000197,2]
[408239630,1773293440314,-1871.8613,0.000197,2]
[408239631,1773293440323,-4342.16652415,0.000197,2]
[408239632,1773293440332,-406.7055972,0.000197,2]
[408239633,1773293440340,-1082.65705041,0.000197,2]
[408239634,1773293440349,-946.0300701,0.000197,2]
[408239635,1773293440358,-2500.0,0.000197,2]
[408239636,1773293440367,-1082.65705035,0.00019722,2]
[408239637,1773293440376,-946.03007002,0.00019722,2]
[408239638,1773293440385,-500.0,0.00019726,2]
[408239639,1773293440394,-150.0,0.00019726,2]
[408239640,1773293440403,-150.0,0.00019726,2]
[408239641,1773293440413,-150.0,0.00019726,2]
[408239642,1773293440421,-150.0,0.00019726,2]
[408239643,1773293440430,-500.0,0.00019726,2]
[408239644,1773293440439,-168.45892578,0.00019726,2]
[408239645,1773293440449,-1999.0,0.00019726,2]
[408239646,1773293440458,-1082.65705035,0.00019744,2]
[408239647,1773293440467,-946.03007002,0.00019744,2]
[408239648,1773293440477,-1082.65705035,0.00019767,2]
[408239649,1773293440486,-946.03007002,0.00019767,2]
[408239650,1773293440496,-174.61919141,0.00019771,2]
[408239651,1773293440505,-500.0,0.00019781,2]
[408239652,1773293440515,-150.0,0.00019781,2]
[408239653,1773293440524,-198.0,0.00019781,2]
[408239654,1773293440533,-150.0,0.00019781,2]
[408239655,1773293440543,-500.0,0.00019781,2]
[408239656,1773293440552,-1280.0,0.00019783,2]
[408239657,1773293440562,-922.0,0.00019783,2]
[408239658,1773293440574,-1213.0,0.00019783,2]
[408239659,1773293440583,-263.39068767,0.00019783,2]
[408239660,1773293440592,-2462.0,0.00019783,2]
[408239661,1773293440602,-1995.045,0.00019783,2]
[408239662,1773293440614,-572.71,0.00019788,2]
[408239663,1773293440623,-500.0,0.00019788,2]
[408239664,1773293440632,-500.0,0.00019788,2]
[408239665,1773293440643,-500.0,0.00019788,2]
[408239666,1773293440652,-500.0,0.00019788,2]
[408239667,1773293440662,-500.0,0.00019788,2]
[408239668,1773293440672,-500.0,0.00019788,2]
[408239669,1773293440681,-500.0,0.00019788,2]
[408239670,1773293440691,-500.0,0.00019788,2]
[408239671,1773293440700,-500.0,0.00019788,2]
[408239672,1773293440709,-500.0,0.00019788,2]
[408239673,1773293440718,-500.0,0.00019788,2]
[408239674,1773293440728,-500.0,0.00019788,2]
[408239675,1773293440737,-200.0,0.00019788,2]
[408239676,1773293440747,-167.29283694,0.00019789,2]
[408239677,1773293440756,-1082.65705035,0.00019789,2]
[408239678,1773293440766,-946.03007002,0.00019789,2]
[408239679,1773293440775,-2159.627,0.00019789,2]
[408239680,1773293440784,-500.0,0.00019799,2]
[408239681,1773293440794,-500.0,0.00019799,2]
[408239682,1773293440804,-500.0,0.00019799,2]
[408239683,1773293440814,-308.46140861,0.00019799,2]
[408239684,1773293440823,-255.94941183,0.00019799,2]
[408239685,1773293440835,-684.18062591,0.00019799,2]
[408239686,1773293440845,-500.0,0.00019799,2]
[408239687,1773293440854,-500.0,0.00019799,2]
[408239688,1773293440863,-500.0,0.00019799,2]
[408239689,1773293440872,-500.0,0.00019799,2]
[408239690,1773293440882,-500.0,0.00019799,2]
[408239691,1773293440891,-500.0,0.00019799,2]
[408239692,1773293440900,-500.0,0.00019799,2]
[408239693,1773293440910,-500.0,0.00019799,2]
[408239694,1773293440920,-500.0,0.00019799,2]
[408239695,1773293440929,-500.0,0.00019799,2]
[408239696,1773293440938,-500.0,0.00019799,2]
[408239697,1773293440947,-500.0,0.00019799,2]
[408239698,1773293440956,-337.71519706,0.00019799,2]
[408239699,1773293440966,-500.0,0.00019799,2]
[408239700,1773293440976,-500.0,0.00019799,2]
[408239701,1773293440986,-500.0,0.00019799,2]
[408239702,1773293440995,-500.0,0.00019799,2]
[408239703,1773293441005,-500.0,0.00019799,2]
[408239704,1773293441015,-500.0,0.00019799,2]
[408239705,1773293441024,-500.0,0.00019799,2]
[408239706,1773293441034,-500.0,0.00019799,2]
[408239707,1773293441044,-500.0,0.00019799,2]
[408239708,1773293441055,-500.0,0.00019799,2]
[408239709,1773293441065,-500.0,0.00019799,2]
[408239710,1773293441075,-500.0,0.00019799,2]
[408239711,1773293441083,-500.0,0.00019799,2]
[408239712,1773293441093,-500.0,0.00019799,2]
[408239713,1773293441102,-500.0,0.00019799,2]
[408239714,1773293441113,-166.70013227,0.00019799,2]
[408239715,1773293441123,-500.0,0.00019799,2]
[408239716,1773293441132,-500.0,0.00019799,2]
[408239717,1773293441144,-600.9949787,0.00019799,2]
[408239718,1773293441153,-500.0,0.00019799,2]
[408239719,1773293441164,-4585.0,0.000198,2]
[408239720,1773293441173,-3665.0,0.000198,2]
[408239721,1773293441182,-2257.25936441,0.000198,2]
[408239722,1773293441195,-28904.19306324,0.000198,2]
[408239730,1773293443006,-1343.0,0.00019783,2]
[408239731,1773293443015,-454.05260072,0.000198,2]
[408239732,1773293444606,-541.39864331,0.000198,2]
[408239740,1773293444814,-390.39328053,0.000198,2]
[408239741,1773293444825,-2606.705,0.000198,2]
[408239743,1773293445702,-5706.00362237,0.000198,2]
[408239744,1773293445922,-749.930102,0.000198,2]
[408239745,1773293445980,-5052.39233374,0.000198,2]
[408239746,1773293445991,-479.26709997,0.000198,2]
[408239771,1773294003022,291.0,0.00016712,2]
[408239773,1773294362298,-1270.75,0.00016145,2]
[408239774,1773294362320,-166.56,0.00016712,2]
[408239775,1773294362342,-170.06447274,0.000169,2]
[408239776,1773294362364,-465.17246323,0.00017,2]
[408239777,1773294363640,-40.82753677,0.00017,2]
[408239778,1773294363661,-500.0,0.00017587,2]
[408239779,1773294363682,-250.0,0.00018384,2]
[408239780,1773294363703,-166.59,0.00018516,2]
[408239781,1773294363726,-500.0,0.00018658,2]
[408239782,1773294363747,-615.1293992,0.00018659,2]
[408239783,1773294365125,-957.41753677,0.00018659,2]
[408239784,1773294401680,250.0,0.00015,2]
[408239785,1773294402753,300.0,0.00017,2]
[408239786,1773294431245,500.0,0.00018023,2]
[408239787,1773294468122,65.1293992,9.346e-05,2]
[408239788,1773294468144,190.0606008,9.346e-05,2]
[408239789,1773294468321,255.19,9.838e-05,2]
[408239790,1773294468530,255.19,0.0001033,2]
[408239791,1773294468749,255.19,0.00010822,2]
[408239792,1773294468954,255.19,0.00011313,2]
[408239793,1773294469172,255.19,0.00011805,2]
[408239794,1773294469351,255.19,0.00012297,2]
[408239795,1773294469551,255.19,0.00012789,2]
[408239796,1773294469751,96.15633517,0.00013281,2]
[408239797,1773294469772,159.03366483,0.00013281,2]
[408239798,1773294469962,255.19,0.00013773,2]
[408239799,1773294470193,255.19,0.00014265,2]
[408239800,1773294470394,255.19,0.00014757,2]
[408239801,1773294470587,255.19,0.00015249,2]
[408239802,1773294470790,255.19,0.0001574,2]
[408239803,1773294471001,255.19,0.00016232,2]
[408239804,1773294471200,255.19,0.00016724,2]
[408239805,1773294471394,127.18327114,0.00017216,2]
[408239806,1773294631835,-500.0,0.00017,2]
[408239807,1773294631846,-6.0,0.00017,2]
[408239808,1773294631855,-128.00672886,0.00017216,2]
[408239809,1773294631864,-166.66,0.00017367,2]
[408239810,1773294631873,-255.19,0.00017708,2]
[408239811,1773294631882,-166.66,0.00017733,2]
[408239812,1773294631891,-166.66,0.00018099,2]
[408239813,1773294631900,-255.19,0.000182,2]
[408239814,1773294631909,-1500.0,0.00018338,2]
[408239815,1773294631918,-166.66,0.00018464,2]
[408239816,1773294631936,-200.0,0.00018505,2]
[408239817,1773294631945,-808.0,0.00018511,2]
[408239818,1773294631958,-247.3325322,0.00018511,2]
[408239819,1773294631967,-1042.45,0.00018612,2]
[408239820,1773294631976,-786.273468,0.00018616,2]
[408239821,1773294631985,-786.27346798,0.0001863,2]
[408239822,1773294631995,-786.27346798,0.00018644,2]
[408239827,1773294632003,-786.27346798,0.00018658,2]
[408239828,1773294632231,-255.19,0.00018692,2]
[408239829,1773294632240,-1200.0,0.00018703,2]
[408239830,1773294632249,-2641.91,0.00018704,2]
[408239831,1773294632257,-300.0,0.00018715,2]
[408239832,1773294632266,-2000.0,0.00018716,2]
[408239833,1773294632275,-967.0,0.00018756,2]
[408239834,1773294632283,-665.0,0.00018757,2]
[408239835,1773294632292,-300.0,0.00018757,2]
[408239836,1773294632301,-200.0,0.00018758,2]
[408239837,1773294632310,-500.0,0.00018758,2]
[408239838,1773294632319,-500.0,0.00018758,2]
[408239839,1773294632327,-500.0,0.00018758,2]
[408239840,1773294632336,-500.0,0.00018758,2]
[408239841,1773294632345,-500.0,0.00018758,2]
[408239842,1773294632354,-500.0,0.00018758,2]
[408239843,1773294632363,-500.0,0.00018758,2]
[408239844,1773294632371,-151.0,0.00018758,2]
[408239845,1773294632380,-500.0,0.00018758,2]
[408239846,1773294632389,-500.0,0.00018758,2]
[408239847,1773294632398,-151.0,0.00018758,2]
[408239848,1773294632406,-500.0,0.00018758,2]
[408239849,1773294632415,-500.0,0.00018758,2]
[408239850,1773294632424,-151.0,0.00018758,2]
[408239851,1773294632433,-500.0,0.00018758,2]
[408239852,1773294632442,-500.0,0.00018758,2]
[408239853,1773294632451,-151.0,0.00018758,2]
[408239854,1773294632460,-500.0,0.00018758,2]
[408239855,1773294632469,-500.0,0.00018758,2]
[408239856,1773294632478,-500.0,0.00018758,2]
[408239857,1773294632487,-151.0,0.00018758,2]
[408239858,1773294632496,-500.0,0.00018758,2]
[408239859,1773294632505,-151.0,0.00018758,2]
[408239860,1773294632514,-500.0,0.00018758,2]
[408239861,1773294632523,-151.0,0.00018758,2]
[408239862,1773294632532,-500.0,0.00018758,2]
[408239863,1773294632541,-151.0,0.00018758,2]
[408239864,1773294632550,-501.47802842,0.00018758,2]
[408239865,1773294632559,-151.0,0.00018758,2]
[408239866,1773294632568,-151.0,0.00018758,2]
[408239867,1773294632577,-151.0,0.00018758,2]
[408239868,1773294632586,-151.0,0.00018758,2]
[408239869,1773294632595,-181.08010149,0.00018758,2]
[408239870,1773294632604,-200.0,0.00018758,2]
[408239871,1773294632613,-222.0,0.00018758,2]
[408239872,1773294632622,-3252.59,0.00018769,2]
[408239873,1773294632631,-2000.0,0.0001877,2]
[408239874,1773294632642,-504.70468458,0.0001877,2]
[408239875,1773294632651,-231.0,0.0001879,2]
[408239876,1773294632661,-308.0,0.00018796,2]
[408239877,1773294632671,-166.66,0.0001883,2]
[408239878,1773294632680,-269.0,0.00018896,2]
[408239879,1773294632691,-278.0,0.00018925,2]
[408239880,1773294632701,-177.0,0.00018933,2]
[408239881,1773294632711,-1572.54693597,0.00018935,2]
[408239882,1773294632720,-1318.91157164,0.00018963,2]
[408239883,1773294632734,-622.08842836,0.00018963,2]
[408239884,1773294632743,-150.0,0.00018963,2]
[408239885,1773294632752,-215.0,0.00018971,2]
[408239886,1773294632761,-636.0283682,0.00019178,2]
[408239887,1773294632772,-363.9716318,0.00019178,2]
[408239888,1773294632782,-166.66,0.00019196,2]
[408239889,1773294632791,-500.0,0.00019392,2]
[408239890,1773294632799,-1000.0,0.00019451,2]
[408239891,1773294632808,-1000.0,0.00019452,2]
[408239892,1773294632818,-504.2091639,0.000195,2]
[408239893,1773294632827,-1042.45,0.00019543,2]
[408239894,1773294632836,-71592.6614,0.000196,2]
[408239895,1773294632845,-1761.47953676,0.000196,2]
[408239896,1773294632854,-4545.4439591,0.0001965,2]
[408239897,1773294632864,-1116.6052265,0.0001965,2]
[408239898,1773294632873,-350.0,0.00019656,2]
[408239899,1773294632883,-166.59,0.00019674,2]
[408239900,1773294632892,-31347.3615,0.00019683,2]
[408239901,1773294632901,-216.8341,0.00019699,2]
[408239902,1773294632910,-3799.39570864,0.00019699,2]
[408239903,1773294632919,-999.81554969,0.00019699,2]
[408239904,1773294632929,-731.8971,0.000197,2]
[408239905,1773294632938,-2000.0,0.000197,2]
[408239906,1773294632948,-1000.0,0.000197,2]
[408239907,1773294632959,-999.81554968,0.00019721,2]
[408239908,1773294632968,-200.0,0.00019726,2]
[408239909,1773294632977,-150.0,0.00019726,2]
[408239910,1773294632986,-500.0,0.00019726,2]
[408239911,1773294632997,-150.0,0.00019726,2]
[408239912,1773294633006,-150.0,0.00019726,2]
[408239913,1773294633015,-150.0,0.00019726,2]
[408239914,1773294633025,-1785.0,0.00019726,2]
[408239915,1773294633034,-999.81554968,0.00019744,2]
[408239916,1773294633043,-1727.702,0.00019751,2]
[408239917,1773294633052,-1043.0,0.00019763,2]
[408239918,1773294633061,-1343.0,0.00019763,2]
[408239919,1773294633070,-620.0,0.00019763,2]
[408239920,1773294633079,-1280.0,0.00019763,2]
[408239921,1773294633089,-1213.0,0.00019763,2]
[408239922,1773294633098,-390.771,0.00019763,2]
[408239923,1773294633108,-3751.0,0.00019763,2]
[408239924,1773294633117,-999.81554968,0.00019766,2]
[408239925,1773294633126,-218.67586493,0.00019773,2]
[408239926,1773294633135,-500.0,0.00019773,2]
[408239927,1773294633144,-500.0,0.00019773,2]
[408239928,1773294633153,-500.0,0.00019773,2]
[408239929,1773294633162,-504.05420061,0.00019773,2]
[408239930,1773294633171,-353.39112616,0.00019776,2]
[408239931,1773294633180,-200.0,0.00019781,2]
[408239932,1773294633190,-500.0,0.00019781,2]
[408239933,1773294633199,-150.0,0.00019781,2]
[408239934,1773294633208,-150.0,0.00019781,2]
[408239935,1773294633217,-904.11,0.00019788,2]
[408239936,1773294633226,-999.81554968,0.00019788,2]
[408239937,1773294633236,-151.0,0.00019796,2]
[408239938,1773294633245,-151.0,0.00019797,2]
[408239939,1773294633254,-500.0,0.00019798,2]
[408239940,1773294633263,-500.0,0.00019798,2]
[408239941,1773294633272,-500.0,0.00019798,2]
[408239942,1773294633281,-240.66064586,0.00019798,2]
[408239943,1773294633290,-500.0,0.00019798,2]
[408239944,1773294633299,-500.0,0.00019798,2]
[408239945,1773294633308,-500.0,0.00019798,2]
[408239946,1773294633317,-500.0,0.00019798,2]
[408239947,1773294633326,-500.0,0.00019798,2]
[408239948,1773294633335,-500.0,0.00019798,2]
[408239949,1773294633344,-500.0,0.00019798,2]
[408239950,1773294633353,-500.0,0.00019798,2]
[408239951,1773294633362,-500.0,0.00019798,2]
[408239952,1773294633372,-500.0,0.00019798,2]
[408239953,1773294633381,-500.0,0.00019798,2]
[408239954,1773294633391,-500.0,0.00019798,2]
[408239955,1773294633399,-500.0,0.00019798,2]
[408239956,1773294633409,-500.0,0.00019798,2]
[408239957,1773294633418,-500.0,0.00019798,2]
[408239958,1773294633427,-500.0,0.00019798,2]
[408239959,1773294633437,-500.0,0.00019798,2]
[408239960,1773294633446,-500.0,0.00019798,2]
[408239961,1773294633456,-477.69513179,0.00019798,2]
[408239962,1773294633465,-500.0,0.00019798,2]
[408239963,1773294633475,-500.0,0.00019798,2]
[408239964,1773294633484,-500.0,0.00019798,2]
[408239965,1773294633494,-500.0,0.00019798,2]
[408239966,1773294633505,-500.0,0.00019798,2]
[408239967,1773294633513,-500.0,0.00019798,2]
[408239968,1773294633522,-500.0,0.00019798,2]
[408239969,1773294633532,-500.0,0.00019798,2]
[408239970,1773294633541,-500.0,0.00019798,2]
[408239971,1773294633550,-500.0,0.00019798,2]
[408239972,1773294633559,-500.0,0.00019798,2]
[408239973,1773294633568,-382.34450487,0.00019798,2]
[408239974,1773294633578,-500.0,0.00019798,2]
[408239975,1773294633588,-500.0,0.00019798,2]
[408239976,1773294633597,-500.0,0.00019798,2]
[408239977,1773294633607,-500.0,0.00019798,2]
[408239978,1773294633617,-500.0,0.00019798,2]
[408239979,1773294633627,-500.0,0.00019798,2]
[408239980,1773294633638,-516.32112194,0.00019798,2]
[408239981,1773294633653,-500.0,0.00019798,2]
[408239982,1773294633663,-500.0,0.00019798,2]
[408239983,1773294633672,-500.0,0.00019798,2]
[408239984,1773294633681,-508.34854705,0.00019798,2]
[408239985,1773294633691,-500.0,0.00019798,2]
[408239986,1773294633700,-500.0,0.00019798,2]
[408239987,1773294633711,-500.0,0.00019798,2]
[408239988,1773294633720,-274.48168291,0.00019798,2]
[408239989,1773294633730,-500.0,0.00019798,2]
[408239990,1773294633739,-500.0,0.00019798,2]
[408239991,1773294633749,-500.0,0.00019798,2]
[408239992,1773294633758,-500.0,0.00019798,2]
[408239993,1773294633767,-500.0,0.00019798,2]
[408239994,1773294633776,-500.0,0.00019798,2]
[408239995,1773294633785,-500.0,0.00019798,2]
[408239996,1773294633794,-500.0,0.00019798,2]
[408239997,1773294633803,-561.72252437,0.00019798,2]
[408239998,1773294633812,-500.0,0.00019798,2]
[408239999,1773294633822,-258.16056095,0.00019798,2]
[408240000,1773294633831,-500.0,0.00019798,2]
[408240001,1773294633839,-258.16056097,0.00019798,2]
[408240002,1773294633849,-500.0,0.00019798,2]
[408240003,1773294633858,-258.16056097,0.00019798,2]
[408240004,1773294633867,-500.0,0.00019798,2]
[408240005,1773294633877,-258.16056097,0.00019798,2]
[408240006,1773294633887,-500.0,0.00019798,2]
[408240007,1773294633896,-500.0,0.00019798,2]
[408240008,1773294633905,-258.16056097,0.00019798,2]
[408240009,1773294633914,-500.0,0.00019798,2]
[408240010,1773294633923,-258.16056097,0.00019798,2]
[408240011,1773294633933,-500.0,0.00019798,2]
[408240012,1773294633942,-500.0,0.00019798,2]
[408240013,1773294633952,-500.0,0.00019798,2]
[408240014,1773294633962,-258.16056097,0.00019798,2]
[408240015,1773294633971,-500.0,0.00019798,2]
[408240016,1773294633981,-258.16056097,0.00019798,2]
[408240017,1773294633990,-500.0,0.00019798,2]
[408240018,1773294634000,-258.16056097,0.00019798,2]
[408240019,1773294634009,-500.0,0.00019798,2]
[408240020,1773294634019,-151865.03292677,0.00019799,2]
[408240021,1773294634030,-500.0,0.00019799,2]
[408240022,1773294634039,-285.41172907,0.00019799,2]
[408240023,1773294634048,-10530.5659246,0.00019799,2]
[408240024,1773294634057,-507.45956471,0.00019799,2]
[408240025,1773294634066,-500.0,0.00019799,2]
[408240026,1773294634075,-500.0,0.00019799,2]
[408240027,1773294634084,-500.0,0.00019799,2]
[408240028,1773294634094,-506.16099555,0.00019799,2]
[408240029,1773294634107,-1421.3460302,0.00019799,2]
[408240030,1773294634115,-3773.2409064,0.00019799,2]
[408240031,1773294634125,-438.680472,0.00019799,2]
[408240032,1773294634134,-438.680472,0.00019799,2]
[408240033,1773294634143,-151.0,0.00019799,2]
[408240034,1773294634152,-156.503475,0.00019799,2]
[408240035,1773294634161,-151.0,0.00019799,2]
[408240036,1773294634171,-151.0,0.00019799,2]
[408240037,1773294634180,-151.0,0.00019799,2]
[408240038,1773294634189,-151.0,0.00019799,2]
[408240039,1773294634198,-547.787333,0.00019799,2]
[408240040,1773294634207,-547.787333,0.00019799,2]
[408240041,1773294634216,-547.787333,0.00019799,2]
[408240042,1773294634226,-547.787333,0.00019799,2]
[408240043,1773294634236,-151.0,0.00019799,2]
[408240044,1773294634245,-151.0,0.00019799,2]
[408240045,1773294634254,-151.0,0.00019799,2]
[408240046,1773294634264,-697.947807,0.00019799,2]
[408240047,1773294634273,-240.12932,0.00019799,2]
[408240048,1773294634287,-697.947807,0.00019799,2]
[408240049,1773294634296,-240.12932,0.00019799,2]
[408240050,1773294634305,-697.947807,0.00019799,2]
[408240051,1773294634315,-240.12932,0.00019799,2]
[408240052,1773294634324,-697.947807,0.00019799,2]
[408240053,1773294634333,-240.12932,0.00019799,2]
[408240054,1773294634342,-151.0,0.00019799,2]
[408240055,1773294634351,-156.269057,0.00019799,2]
[408240056,1773294634360,-151.0,0.00019799,2]
[408240057,1773294634369,-227.0,0.000198,3]
[408240058,1773294634378,-152.0,0.000198,3]
[408240059,1773294634387,-200.0,0.000198,2]
[408240060,1773294634396,-500.0,0.000198,2]
[408240061,1773294634405,-999.81554968,0.00019811,2]
[408240062,1773294634415,-999.81554968,0.00019833,2]
[408240063,1773294634424,-500.0,0.00019836,2]
[408240064,1773294634433,-200.0,0.00019836,2]
[408240065,1773294634442,-200.0,0.00019836,2]
[408240066,1773294634452,-999.81554968,0.00019855,2]
[408240067,1773294634461,-618.13,0.00019869,2]
[408240068,1773294634471,-999.81554968,0.00019878,2]
[408240069,1773294634480,-500.0,0.0001989,2]
[408240070,1773294634489,-165.0,0.000199,2]
[408240071,1773294634498,-166.06,0.000199,3]
[408240072,1773294634508,-4802.8498,0.000199,2]
[408240073,1773294634517,-172.12250134,0.000199,2]
[408240074,1773294634526,-197.82059334,0.000199,3]
[408240075,1773294634535,-4980.18154276,0.000199,2]
[408240076,1773294634545,-338.7393943,0.000199,2]
[408240077,1773294634554,-999.81554968,0.000199,2]